Cogmind - Beta 11 X8 *** ADVENTURER MODE // 2021.11.12 @ 12:59:30 Player: Rogirek Result: Destroyed by P-60 Hacker with Shock Rifle Performance ------------- Evolutions (0) 0 Regions Visited (3) 600 Robots Destroyed (24) 120 Value Destroyed (721) 721 Prototype IDs (26) 520 Alien Tech Used (0) 0 Bonus (300) 300 TOTAL SCORE: 2261 Bonus ------- Aligned with FarCom 300 Cogmind --------- Core Integrity 0/250 Matter 121/300 Energy 250/250 System Corruption 4% Temperature Cool (1) Movement Core (450) Ox8 Location -10/Exiles Parts ------- > --- POWER (1) -------- Ion Engine > --- PROPULSION (2) --- (None) > --- UTILITY (2) ------ Large Storage Unit Structural Scanner > --- WEAPON (2) ------- Mini Grenade Launcher > --- INVENTORY (15) --- Light Ion Engine Wheel Compact Wheel Compact Wheel Compact Wheel Lightpack 2.0 Signal Interpreter Signal Interpreter Signal Interpreter Light Armor Plating Light Assault Rifle Mining Claw Peak State ------------ > --- POWER ------------ Light Ion Engine > --- PROPULSION ------- Light Treads Light Treads > --- UTILITY ---------- Large Storage Unit Structural Scanner > --- WEAPON ----------- Light Assault Rifle Mini Grenade Launcher > --- INVENTORY -------- Ion Engine Light Ion Engine Wheel Compact Wheel Compact Wheel Compact Wheel Lightpack 2.0 Signal Interpreter Signal Interpreter Signal Interpreter Light Armor Plating Assault Rifle Mining Claw [Rating: 12] Favorites ----------- Power Light Ion Engine Engine Light Ion Engine Propulsion Light Treads Treads Light Treads Wheel Compact Wheel Utility Large Storage Unit Device Structural Scanner Storage Large Storage Unit Processor Improved Targeting Computer Weapon Spread Laser Energy Gun Spread Laser Ballistic Gun Assault Rifle Launcher Mini Grenade Launcher Build | -11 -10 -10 -10 ------- Run | Scr Mat Min Exi Slots Evolved . | . . . . Power . | . . . . Propulsion . | . . . . Utility . | . . . . Weapon . | . . . . Parts Attached 23 | 8 9 2 4 Power 2 | 1 . . 1 Engine 2 | 1 . . 1 Core . | . . . . Reactor . | . . . . Propulsion 6 | 4 2 . . Treads 4 | 2 2 . . Leg . | . . . . Wheel 2 | 2 . . . Hover . | . . . . Flight . | . . . . Utility 4 | 1 3 . . Device 1 | . 1 . . Storage 2 | 1 1 . . Processor 1 | . 1 . . Hackware . | . . . . Protection . | . . . . Artifact . | . . . . Weapon 11 | 2 4 2 3 Energy Gun 4 | 1 2 1 . Energy Cannon . | . . . . Ballistic Gun 5 | 1 1 1 2 Ballistic Cannon . | . . . . Launcher 2 | . 1 . 1 Special Weapon . | . . . . Impact Weapon . | . . . . Slashing Weapon . | . . . . Piercing Weapon . | . . . . Special Melee Weapon . | . . . . Unidentified Prototypes . | . . . . Parts Lost 4 | . . . 4 Power 1 | . . . 1 Propulsion 2 | . . . 2 Utility . | . . . . Weapon 1 | . . . 1 Highest Loss Streak 3 | . . . 3 Average Slot Usage (%) 98 | . 98 100 99 Engine 14 | . 14 14 14 Treads 27 | . 27 28 27 Device 7 | . 3 14 14 Storage 14 | . 14 14 14 Processor 6 | . 9 . . Energy Gun 16 | . 19 14 7 Ballistic Gun 10 | . 7 14 15 Launcher 1 | . . . 4 Naked Turns . | . . . . Heaviest Build 32 | 12 32 29 29 Greatest Support 40 | 40 40 40 40 Greatest Overweight (x) . | . . . . Average Overweight (x) . | . . . . Largest Inventory Capacity 15 | 8 15 15 15 Average Capacity 14 | 7 14 15 15 Most Carried 15 | 7 15 15 15 Average Carried 12 | 4 12 14 14 Final Capacity 15 | 8 15 15 15 Final Carried 15 | 6 14 15 14 Class Distribution -------------------- 100% | Mutant Dominant Class ---------------- Mutant | -10/Materials Mutant | -10/Mines Mutant | -10/Exiles Resources | -11 -10 -10 -10 ----------- Run | Scr Mat Min Exi Matter Collected 452 | 176 229 47 . Remotely . | . . . . Salvage Created 522 | . 299 53 170 Parts 31 | . 11 11 9 Haulers Intercepted 1 | . 1 . . Recyclers Shooed . | . . . . Parts Field Recycled . | . . . . Retrieved Matter . | . . . . Parts Self-Destructed . | . . . . Prevented . | . . . . Kills | -11 -10 -10 -10 ------- Run | Scr Mat Min Exi Combat Hostiles Destroyed 21 | . 8 5 8 Guns 11 | . 6 5 . AOE 10 | . 2 . 8 Classes Destroyed 8 | . 5 . 3 Worker 1 | . 1 . . Hauler 1 | . 1 . . Watcher 1 | . 1 . . Swarmer 7 | . 2 5 . Grunt 9 | . 6 . 3 Demolisher 1 | . . . 1 Hunter 2 | . . . 2 Programmer 2 | . . . 2 Best Kill Streak 8 | . 3 3 8 Combat Bots Only 8 | . 3 3 8 Max Kills in Single Turn 2 | . 2 2 2 Gunslinging 1 | . . 1 . Exploded 2 | . 2 . 2 Melee . | . . . . Uniques/NPCs Destroyed . | . . . . Combat | -11 -10 -10 -10 -------- Run | Scr Mat Min Exi Damage Taken 952 | . 259 24 669 Core 257 | . 51 . 206 Absorbed by Shields . | . . . . Core Remaining (%) 100 | 100 . . . Volleys Fired 41 | . 21 5 15 Largest 2 | . 2 2 2 Hottest 130 | . 130 85 50 Shots Fired 70 | . 37 10 23 Gun 59 | . 36 10 13 Cannon . | . . . . Launcher 11 | . 1 . 10 Special . | . . . . Kinetic 37 | . 19 5 13 Thermal 22 | . 17 5 . Explosive 11 | . 1 . 10 Electromagnetic . | . . . . Robot Hit Streak 25 | . 25 4 12 Robot Miss Streak 2 | . 2 2 1 Penetration Max . | . . . . Secondary Targets 2 | . 1 1 . Max Gunslinging Chain 1 | . 1 1 . Shots Hit Robots 55 | . 32 8 15 Core Hits 54 | . 20 9 25 Critical Kills . | . . . . Critical Parts Destroyed . | . . . . Critical Strikes . | . . . . Melee Attacks . | . . . . Impact . | . . . . Slashing . | . . . . Piercing . | . . . . Sneak Attacks . | . . . . Combat Hostiles . | . . . . Follow-up Attacks . | . . . . Damage Inflicted 2007 | . 799 98 1110 Guns 614 | . 434 98 82 Cannons . | . . . . Explosions 1393 | . 365 . 1028 Melee . | . . . . Ramming . | . . . . Kinetic 313 | . 194 37 82 Thermal 537 | . 476 61 . Explosive 1157 | . 129 . 1028 Electromagnetic . | . . . . Impact . | . . . . Slashing . | . . . . Piercing . | . . . . Highest Corruption 4 | . . . 4 Average Corruption 2 | . . . 2 Corruption Purged . | . . . . Overload Shots . | . . . . Overflow Damage 24 | . 21 . 3 Projectiles . | . . . . Explosions 24 | . 21 . 3 Melee . | . . . . Knockbacks . | . . . . Impact . | . . . . Kinetic . | . . . . Secondary . | . . . . Self-Inflicted Damage 56 | . 56 . . Shots 1 | . 1 . . Rammed . | . . . . Targets Rammed . | . . . . Kicked . | . . . . Crushed . | . . . . Highest Temperature 138 | . 138 72 2 Average Temperature 38 | . 41 33 1 Received Heat Transfer 150 | . 126 . 24 Siege Activations . | . . . . Robots Corrupted . | . . . . Combat Hostiles . | . . . . Parts Fried . | . . . . Impact Corruptions . | . . . . Robots Melted . | . . . . Combat Hostiles . | . . . . Parts Melted 1 | . 1 . . Heat Transferred 846 | . 776 70 . Parts Sabotaged . | . . . . Parts Stolen . | . . . . Parts Stripped . | . . . . Power Chain Reactions . | . . . . Missiles Intercepted . | . . . . Alert | -11 -10 -10 -10 ------- Run | Scr Mat Min Exi Peak Influence 163 | . 163 150 . Initial . | . . . . Average 36 | . 34 76 . Maximum Alert Level . | . . . . Low Security (%) 100 | 100 100 100 . Level 1 . | . . . . Level 2 . | . . . . Level 3 . | . . . . Level 4 . | . . . . Level 5 . | . . . . High Security . | . . . . Max Security . | . . . . Squads Dispatched 1 | . 1 . . Investigation 1 | . 1 . . Extermination . | . . . . Reinforcement . | . . . . Assault . | . . . . Garrison . | . . . . Intercept . | . . . . Construction Impeded . | . . . . Haulers Reinforced . | . . . . Active Scanning Responses . | . . . . Cargo Convoy Interrupts . | . . . . Stealth | -11 -10 -10 -10 --------- Run | Scr Mat Min Exi Distress Signals . | . . . . Communications Jammed . | . . . . Distress Signals . | . . . . Times Spotted 37 | . 13 6 18 Peak Tracking Total 16 | . 4 3 16 Tactical Retreats 1 | . . 1 . Traps | -11 -10 -10 -10 ------- Run | Scr Mat Min Exi Traps Triggered 1 | . 1 . . Indirectly . | . . . . Trap Hack Attempts . | . . . . Triggered . | . . . . Disarmed . | . . . . Reprogrammed . | . . . . Reused . | . . . . Traps Extracted . | . . . . Installed . | . . . . Triggered . | . . . . Exploded 2 | . . . 2 Machines | -11 -10 -10 -10 ---------- Run | Scr Mat Min Exi Machines Disabled 3 | . 3 . . Max in Single Turn 3 | . 3 . . Machines Sabotaged . | . . . . Garrisons Compromised . | . . . . Overloaded Fab Kills . | . . . . Hacking | -11 -10 -10 -10 --------- Run | Scr Mat Min Exi Machines Accessed 11 | . 10 . 1 Terminals 8 | . 8 . . Fabricators . | . . . . Repair Stations 1 | . 1 . . Recycling Units 1 | . 1 . . Scanalyzers . | . . . . Garrison Access . | . . . . Total Hacks 36 | . 35 . 1 Successful 26 | . 25 . 1 Failed 10 | . 10 . . Catastrophic 1 | . 1 . . Database Lockouts . | . . . . Manual 14 | . 13 . 1 Terminals 26 | . 26 . . Fabricators . | . . . . Repair Stations 8 | . 8 . . Recycling Units 1 | . 1 . . Scanalyzers . | . . . . Garrison Access . | . . . . Terminal Hacks 9 | . 8 . 1 Robot Analysis 1 | . 1 . . Prototype ID Bank 3 | . 3 . . Emergency Access Points 1 | . 1 . . Locate Traps 1 | . 1 . . Zone Layout 2 | . 2 . . EX-Prototype ID Bank 1 | . . . 1 Fabricator Hacks . | . . . . Repair Station Hacks 8 | . 8 . . Scan Component 4 | . 4 . . Repair 4 | . 4 . . Recycling Unit Hacks 1 | . 1 . . Report Inventory 1 | . 1 . . Scanalyzer . | . . . . Garrison Access Hacks . | . . . . Unauthorized Hacks 8 | . 8 . . Terminals 8 | . 8 . . Botnet 7 | . 7 . . Detonate 1 | . 1 . . Fabricators . | . . . . Repair Stations . | . . . . Recycling Units . | . . . . Scanalyzers . | . . . . Garrison Access . | . . . . Data Cores Recovered . | . . . . Used . | . . . . Hacking Detections 9 | . 9 . . Full Trace Events . | . . . . Feedback Events . | . . . . Feedback Blocked . | . . . . Robot Schematics Acquired . | . . . . Robots Built . | . . . . Authchips . | . . . . Time . | . . . . Total Robot Build Rating . | . . . . Part Schematics Acquired . | . . . . Parts Built . | . . . . Authchips . | . . . . Time . | . . . . Total Part Build Rating . | . . . . Parts Repaired 4 | . 4 . . Time 104 | . 104 . . Parts Recycled . | . . . . Recycled Matter . | . . . . Retrieved Matter . | . . . . Retrieved Components . | . . . . Parts Scanalyzed . | . . . . Part Schematics Acquired . | . . . . Parts Damaged . | . . . . Bothacking | -11 -10 -10 -10 ------------ Run | Scr Mat Min Exi Used RIF Installer . | . . . . Robots Hacked . | . . . . Non-combat . | . . . . Combat . | . . . . Robot Hacks Applied . | . . . . Relay Couplers Released . | . . . . Fabnet Peak Effective % . | . . . . Robots Rewired . | . . . . Allies Hacked . | . . . . Hacks Repelled . | . . . . Allies | -11 -10 -10 -10 -------- Run | Scr Mat Min Exi Total Allies . | . . . . Largest Group . | . . . . Highest-Rated Group . | . . . . Highest-Rated Ally . | . . . . Total Orders . | . . . . Ally Attacks . | . . . . Total Damage . | . . . . Kills . | . . . . Allies Corrupted . | . . . . Allies Melted . | . . . . Intel | -11 -10 -10 -10 ------- Run | Scr Mat Min Exi Robot Analysis Total 1 | . 1 . . Derelict Logs Recovered . | . . . . Drone Launches . | . . . . Drone Recoveries . | . . . . Exploration | -11 -10 -10 -10 ------------- Run | Scr Mat Min Exi Turns Passed 1840 | 74 1201 129 436 Spaces Moved 918 | 47 567 62 242 Core 4 | 4 . . . Treads 893 | 22 567 62 242 Legs . | . . . . Wheels 21 | 21 . . . Hover . | . . . . Flight . | . . . . Fastest Speed 50 | 50 160 160 160 Average Speed 157 | 120 160 160 160 Slowest Speed 160 | 160 160 160 160 Overloaded Moves . | . . . . Propulsion Burnouts . | . . . . Robots Hopped . | . . . . Cave-ins Triggered . | . . . . Exploration Rate (%) 36 | 3 76 19 49 Regions Visited 3 Branch Regions 2 Pre-discovered Areas . | . . . . Known Exits Taken . | . . . . Unknown Exits Taken 3 | 1 1 1 . Scrap Searched . | . . . . Spaces Dug . | . . . . Terrain Destroyed 51 | . 50 . 1 Melee . | . . . . Projectile . | . . . . AOE 51 | . 50 . 1 Terrain Rammed . | . . . . Walls Destroyed . | . . . . Machines Disabled . | . . . . Actions | -11 -10 -10 -10 --------- Run | Scr Mat Min Exi Total 1234 | 61 823 81 269 Wait 219 | . 207 12 . Move 915 | 46 566 61 242 Hop . | . . . . Pick Up 23 | 7 12 1 3 Fast Attach 12 | 5 7 . . Attach 3 | 1 . . 2 Detach 3 | . 3 . . Swap 8 | 2 2 2 2 Drop 10 | . 5 . 5 Fire 41 | . 21 5 15 Melee . | . . . . Ram . | . . . . Kick . | . . . . Crush . | . . . . Escape Stasis . | . . . . Rewire . | . . . . Trap . | . . . . Miscellaneous . | . . . . Route ------- -11/Scrapyard -10/Materials (discovered 4 exits: [*Mat x2] / [*Min x2]) -10/Mines -10/Exiles History --------- Turn | Location | Event 41 | -11/Scrapyard | Discovered new exit (range 14) 75 | -11/Scrapyard | Entered Materials 118 | -10/Materials | Discovered new exit (range 12) 309 | -10/Materials | Build established: Mutant 360 | -10/Materials | Discovered new exit (range 10) 547 | -10/Materials | Repaired Lgt. Treads 575 | -10/Materials | Repaired Lgt. Treads 602 | -10/Materials | Repaired Assault Rifle 630 | -10/Materials | Repaired Lgt. Ion Engine 749 | -10/Materials | Discovered new exit (range 7) 895 | -10/Materials | Discovered new exit (range 14) 1276 | -10/Materials | Entered Mines 1399 | -10/Mines | Deemed a non-threat by the Exiles lab entrance 1399 | -10/Mines | Discovered new exit (range 5) 1405 | -10/Mines | Entered Exiles 1447 | -10/Exiles | Met 8R-AWN 1474 | -10/Exiles | Met EX-HEX 1538 | -10/Exiles | Met EX-DEC 1561 | -10/Exiles | Met EX-BIN 1583 | -10/Exiles | Aligned with FarCom system 1585 | -10/Exiles | Given EX-Vault access code 1626 | -10/Exiles | Opened EX-Vault 1653 | -10/Exiles | Found Lightpack 2.0 1690 | -10/Exiles | Warned to stay clear of 0b10 Research branches 1698 | -10/Exiles | Exiles lab attacked by MAIN.C 1797 | -10/Exiles | Core integrity fell below 50% 1830 | -10/Exiles | Core integrity fell below 20% 1841 | -10/Exiles | Destroyed by P-60 Hacker with Shock Rifle Last Messages --------------- 01781_ Lgt. Ion Engine destroyed. 01781_ Machine disabled. 01793_ D-53 Grenadier destroyed. 01796_ The unstable cave ceiling collapses. 01796_ Penetrated by Slug. 01796_ G-34 Mercenary destroyed. 01799_ Penetrated by Slug. 01800_ Slug penetrates Machine. 01803_ Machine disabled. 01806_ H-55 Commando destroyed. 01815_ Penetrated by Slug. 01825_ H-55 Commando destroyed. 01837_ P-60 Hacker destroyed. 01837_ G-34 Mercenary destroyed. 01837_ Slug penetrates P-60 Hacker. 01837_ Lgt. Treads destroyed. 01838_ Assault Rifle destroyed. 01839_ P-60 Hacker destroyed. 01839_ Destroyed Shock Rifle. 01840_ Lgt. Treads destroyed. Map ----- +----------------------------------------------------+ | ?????????????##" """"##????????????????? | | ?????????????##" """##????????????????? | | ?????????????##" """##????????????????? | | ?????????????##" """##????????????????? | | ?????????????##" """##????????????????? | | ?????????????##" """##????????????????? | | ?????????????### """"""???????????????? | | ?????????????### """###???????????????? | | ?"????????????##" "X" """"" ???????????????? | | ?" ???????????##" """ # ????????????????? | | ??????????###" """""""""# ????????????????? | | "" ?????????####" ########### ????????????????? | | ## ###########"" ############????????????????? | | ## ##########"" ###?????????????????????????? | | X# #"###""""""" ####?#############??????????? | | """"" " "" ##################?????????? | | "" "" " #####"""""""""####????????? | | " " """ """"###????????? | | "" " ##????????? | | " """##????????? | | "a"###???????# | | " "#####?????# | | ""####????## | | """##??#### | | ### =% l *% "###?#### | | ""##### # @ =%* ###### | | """############# [ p| h ##### | | """####?######## %gggg ### | | ""###????????### p | | ###?????????##""""g g | | #??????????" " | | ???????????? #""" | | ??????????? ##### | | ??????????? ###### | | ??????????? ####??? | | ?? ????????????? "" ""###???? | | ???? ????????????? ##""" " " "" % "###????? | | ?????????????????? ######""" """# """"""####????? | | ??????????????????????#####"""?## ##########?????? | | ?????????????????????????####???###########??????? | | ?????????????????????????####????????????????????? | | ?????????????????????????????????????????????????? | | ?????????????????????????????????????????????????? | | ?????????????????????????????????????????????????? | | ?????????????????????????????????????????????????? | | ?????????????????????????????????????????????????? | | ?????????????????????????????????????????????????? | | ?????????????????????????????????????????????????? | | ?????????????????????????????????????????????????? | | ?????????????????????????????????????????????????? | +----------------------------------------------------+ Best States ------------- Heat Dissipation 25 Energy Generation 10 Energy Capacity 250 Matter Stores 280 Matter Capacity 300 Sight Range 16 Terrain Scan Density 10 Resistance: KI 20 Resistance: TH 20 Resistance: EX 20 Resistance: EM 20 Resistance: I 20 Resistance: S 20 Resistance: P 20 Evasion (%) 42 Targeting Accuracy 6 Recoil Reduction 2 Offensive Hacking 10 Item Schematics ----------------- None Robot Schematics ------------------ None Fabricated ------------ Nothing Alien Tech Used ----------------- None Achievements -------------- None Challenges ------------ None Game ------ Seed BiocellCarbideCleaver Manual? 0 Play Time 00:19:10 Cumulative 45.2 hours Start 2021.11.12 @ 12:41:30 End 2021.11.12 @ 12:59:30 Sessions 1 Manual Loads 0 Difficulty Adventurer Special Mode None Game No. 26 Rogue 7 Adventurer 19 Explorer 0 Win Type - Total 1 Types 1/0/0/0/0/0/0/0/0 Lore% 29 Gallery% 41 Achievement% 34 Wizard Run 0 Options --------- ASCII 0 Keyboard 0 Movement Mouse Keybinds 0 Fullscreen 1 Font 24/Smallcaps Map View 76x50 Tactical HUD 1 Map Filters NONE Filters NONE Steam 1 RUN: 4fae588d-5b1c-4281-a7f1-582573e871fc